bitfinex/quotes_ETHUSD_20250810
["timestamp","ask_amount","ask_price","bid_price","bid_amount"]
[1754804952276,1.9494,4228.7,4228.6,1.18744741]
[1754804952512,1.9494,4228.7,4228.6,0.72934741]
[1754804952688,1.9494,4228.7,4228.6,0.26124741]
[1754804953016,4.03617436,4228.7,4228.6,0.26124741]
[1754804956405,4.03617436,4228.7,4228.6,0.26224741]
[1754804958610,4.58617436,4228.7,4228.6,0.26224741]
[1754804959338,5.04917436,4228.7,4228.6,0.26224741]
[1754804960844,5.0572,4228.7,4228.6,0.26224741]
[1754804961649,2.7632,4228.7,4228.6,0.26224741]
[1754804961944,4.58217436,4228.7,4228.6,0.26224741]
[1754804963524,4.58217436,4228.7,4228.6,0.2623892]
[1754804970046,5.04517436,4228.7,4228.6,0.2623892]
[1754804970240,5.54981684,4228.7,4228.6,0.2623892]
[1754804970746,5.55784305,4228.7,4228.6,0.2623892]
[1754804971718,5.05320057,4228.7,4228.6,0.2623892]
[1754804971924,5.08276048,4228.7,4228.6,0.2623892]
[1754804972245,5.58723068,4228.7,4228.6,0.2623892]
[1754804972449,5.55767077,4228.7,4228.6,0.26242197]
[1754804972612,5.05320057,4228.7,4228.6,0.26242197]
[1754804972946,5.08276048,4228.7,4228.6,0.26242197]
[1754804973113,5.58709404,4228.7,4228.6,0.26242197]
[1754804973484,5.55753413,4228.7,4228.6,0.26242197]
[1754804974627,0.55,4227.9,4227.7,0.001]
[1754804974828,4.26623709,4227.8,4227.7,0.001]
[1754804975161,4.89391838,4227.8,4227.7,0.001]
[1754804978743,4.92348458,4227.8,4227.7,0.001]
[1754804979350,4.89391838,4227.8,4227.7,0.001]
[1754804980934,5.01155309,4227.8,4227.7,0.001]
[1754804981328,5.01155309,4227.8,4227.7,0.4549]
[1754804982658,4.89391838,4227.8,4227.7,0.4549]
[1754804984554,4.89091838,4227.8,4227.7,0.8867]
[1754804984756,4.26323709,4227.8,4227.7,0.8867]
[1754804986377,0.1184,4228.0,4227.7,0.8867]
[1754804986664,0.1184,4227.8,4227.7,0.001]
[1754804986963,1.9394,4227.8,4227.7,0.22216994]
[1754804987839,1.9394,4227.8,4227.7,1.17266994]
[1754804988965,4.76478796,4227.8,4227.7,0.22216994]
[1754804989135,4.38163709,4227.8,4227.7,0.22216994]
[1754804989569,4.38163709,4227.8,4227.7,0.72116994]
[1754804989739,4.38163709,4227.8,4227.7,0.72126941]
[1754804991367,0.1184,4227.8,4227.7,1.17276941]
[1754804991543,1.9394,4227.8,4227.7,1.17276941]
[1754804991748,1.9394,4227.8,4227.7,1.48338456]
[1754804991949,1.9394,4227.8,4227.7,1.17276941]
[1754804992360,0.1184,4227.8,4227.7,3.06505126]
[1754804992556,1.9394,4227.8,4227.7,3.06505126]
[1754804994573,1.9394,4227.8,4227.7,1.17276941]
[1754804997085,1.9394,4227.8,4227.7,0.22226941]
[1754804997477,1.9394,4227.8,4227.7,0.72126941]
[1754804997673,1.9394,4227.8,4227.7,0.22226941]
[1754804997884,4.28877927,4227.8,4227.7,0.22226941]
[1754805000396,3.83163709,4227.8,4227.7,0.22226941]
[1754805000581,4.38163709,4227.8,4227.7,0.22226941]
[1754805000783,3.83163709,4227.8,4227.7,0.72126941]
[1754805001159,3.83163709,4227.8,4227.7,0.22226941]
[1754805001861,4.41120329,4227.8,4227.7,0.2223271]
[1754805002060,5.2746477,4227.8,4227.7,0.2223271]
[1754805002487,5.0250477,4227.8,4227.7,0.2223271]
[1754805002875,5.2746477,4227.8,4227.7,0.2223271]
[1754805004768,5.0250477,4227.8,4227.7,0.2223271]
[1754805007557,5.5240477,4227.8,4227.7,0.2223271]
[1754805008302,5.5240477,4227.8,4227.7,0.7213271]
[1754805008496,5.5240477,4227.8,4227.7,0.2223271]
[1754805010793,5.9725477,4227.8,4227.7,0.2223271]
[1754805012165,5.5240477,4227.8,4227.7,0.22233346]
[1754805015202,5.9725477,4227.8,4227.7,0.22230232]
[1754805016192,5.5240477,4227.8,4227.7,0.22230232]
[1754805018073,5.5240477,4227.8,4227.7,0.22227936]
[1754805021212,5.5240477,4227.8,4227.7,0.68785678]
[1754805022609,5.5240477,4227.8,4227.7,0.4666]
[1754805022808,5.5240477,4227.8,4227.7,0.22225914]
[1754805023384,5.5240477,4227.8,4227.7,0.68785914]
[1754805023800,5.5240477,4227.8,4227.7,0.22225914]
[1754805024004,5.5240477,4227.8,4227.7,1.11685914]
[1754805024213,5.5240477,4227.8,4227.7,0.68785914]
[1754805027208,5.5240477,4227.8,4227.7,1.11685914]
[1754805027813,5.5240477,4227.8,4227.7,0.68785914]
[1754805028215,5.5240477,4227.8,4227.7,0.22225914]
[1754805028586,6.02879418,4227.8,4227.7,0.22225914]
[1754805029523,6.46809418,4227.8,4227.7,0.22225914]
[1754805029894,6.02879418,4227.8,4227.7,0.22225914]
[1754805034222,9.02879418,4227.8,4227.2,0.001]
[1754805034410,2.4424609,4227.3,4227.2,0.001]
[1754805034615,4.2634609,4227.3,4227.2,0.001]
[1754805035014,4.3818609,4227.3,4227.2,0.001]
[1754805035214,0.55,4227.2,4226.6,0.04]
[1754805035402,2.56103999,4226.9,4226.6,0.04]
[1754805035606,7.41161248,4226.9,4226.6,0.04]
[1754805035934,7.88678647,4226.9,4226.6,0.04]
[1754805037004,8.14548647,4226.9,4226.6,0.04]
[1754805037608,8.15351541,4226.9,4226.6,0.04]
[1754805037935,9.81477868,4226.9,4226.6,0.04]
[1754805039431,10.57216123,4226.9,4226.6,0.04]
[1754805040601,10.74995118,4226.9,4226.6,0.04]
[1754805040799,5.44268477,4226.8,4226.6,0.04]
[1754805041018,3.74330344,4226.7,4226.6,0.04]
[1754805041212,5.16615104,4226.7,4226.6,0.04]
[1754805041415,8.68657715,4226.7,4226.6,0.04]
[1754805045757,8.68657715,4226.7,4226.6,0.9346]
[1754805045917,8.67854821,4226.7,4226.6,0.9346]
[1754805046317,8.67854821,4226.7,4226.6,1.15558442]
[1754805046754,5.67854821,4226.7,4226.6,0.72658442]
[1754805046937,4.26372955,4226.7,4226.6,1.15558442]
[1754805047329,2.35830981,4226.8,4226.6,1.15558442]
[1754805047532,2.35830981,4226.8,4226.7,0.67125523]
[1754805047719,2.35830981,4226.8,4226.7,1.13745523]
[1754805047720,4.72930981,4226.8,4226.7,1.13745523]
[1754805047915,0.4656,4226.8,4226.7,1.13745523]
[1754805048214,2.8366,4226.8,4226.7,1.13745523]
[1754805048415,0.4656,4226.8,4226.7,1.13745523]
[1754805048636,2.2866,4226.8,4226.7,1.13745523]
[1754805053037,2.2866,4226.8,4226.7,3.03018478]
[1754805054155,2.2866,4226.8,4226.7,1.13745523]
[1754805057055,1.821,4226.8,4226.7,1.13745523]
[1754805058332,0.29618995,4226.9,4226.7,1.13745523]
[1754805058654,1.82,4226.8,4226.7,1.89272955]
[1754805058860,1.82,4226.8,4226.7,2.4964753]
[1754805059063,1.82,4226.8,4226.7,3.4129753]
[1754805060462,0.002,4227.7,4226.7,3.41297265]
[1754805060643,1.9404,4227.7,4227.6,10.115551]
[1754805060966,0.1204,4227.7,4227.6,10.3366433]
[1754805061170,0.002,4227.7,4227.6,12.45786345]
[1754805061328,0.002,4227.7,4227.6,12.57626345]
[1754805062430,0.002,4227.7,4227.6,15.57626345]
[1754805062870,0.002,4228.1,4228.0,1.89214758]
[1754805063077,0.002,4228.1,4228.0,13.33646427]
[1754805063258,0.002,4228.1,4228.0,14.75401772]
[1754805072072,0.002,4229.0,4228.9,1.89174489]
[1754805072277,0.002,4229.0,4228.9,2.11283719]
[1754805072478,0.002,4229.0,4228.9,6.14773719]
[1754805073798,0.002,4229.0,4228.9,14.37096158]
[1754805074001,0.002,4229.0,4228.9,15.57568173]
[1754805075371,0.002,4229.0,4228.9,0.2210923]
[1754805075713,0.5575,4229.0,4228.9,0.2210923]
[1754805075873,0.1204,4229.0,4228.9,0.2210923]
[1754805078503,0.1204,4229.0,4228.9,0.2197995]
[1754805079712,0.5622,4229.0,4228.9,0.2197995]
[1754805079911,0.1204,4229.0,4228.9,0.2197995]
[1754805080411,0.1204,4229.0,4228.9,0.6970995]
[1754805080590,0.1204,4229.0,4228.9,2.11154439]
[1754805080786,0.1204,4229.0,4228.9,2.58884439]
[1754805081116,0.1204,4229.0,4228.9,3.05834439]
[1754805081308,0.002,4229.0,4228.9,3.05834439]
[1754805082011,0.1204,4229.0,4228.9,0.2197995]
[1754805082621,0.1204,4229.0,4228.9,2.11154439]
[1754805082918,0.1204,4229.0,4228.9,0.2197995]
[1754805084019,0.1204,4229.0,4228.9,2.11154439]
[1754805084521,0.1204,4229.0,4228.9,0.2197995]
[1754805085527,0.3767,4229.0,4228.9,0.2197995]
[1754805085726,0.60372709,4229.0,4228.9,0.2197995]
[1754805085907,0.3767,4229.0,4228.9,0.2197995]
[1754805088435,0.1204,4229.0,4228.9,0.2197995]
[1754805090807,0.5622,4229.0,4228.9,0.2197995]
[1754805091332,0.1204,4229.0,4228.9,0.2197995]
[1754805091532,3.10370016,4229.0,4228.9,0.2197995]
[1754805091716,3.78523386,4229.0,4228.9,0.2197995]
[1754805092059,6.81479167,4229.0,4228.9,0.2197995]
[1754805092220,7.28948018,4229.0,4228.9,0.2197995]
[1754805092403,15.51270457,4229.0,4228.9,0.2197995]
[1754805093238,15.7314915,4229.0,4228.9,0.2197995]
[1754805093437,16.58270612,4229.0,4228.9,0.2197995]
[1754805094237,15.9512905,4229.0,4228.9,0.2197995]
[1754805094607,16.58270612,4229.0,4228.9,0.2197995]
[1754805095125,15.9512905,4229.0,4228.9,0.2197995]
[1754805095303,15.73250357,4229.0,4228.9,0.2197995]
[1754805095706,2.44205808,4228.2,4228.1,0.001]
[1754805095906,6.95927918,4229.0,4228.1,0.001]
[1754805095907,2.52377896,4228.9,4228.1,0.22196775]
[1754805096155,1.89189295,4228.6,4228.2,1.16776775]
[1754805096330,1.89192392,4228.5,4228.3,0.22096775]
[1754805096645,3.70979475,4228.8,4228.4,0.22096775]
[1754805096848,3.70979475,4228.8,4228.5,0.22096775]
[1754805097013,1.89183436,4228.7,4228.6,0.22096775]
[1754805097213,2.47417717,4228.7,4228.6,0.22096775]
[1754805097459,2.50373708,4228.7,4228.6,0.22096775]
[1754805097754,2.94553708,4228.7,4228.6,0.22096775]
[1754805098048,2.47417717,4228.7,4228.6,0.22096775]
[1754805099422,2.94553708,4228.7,4228.6,0.22096775]
[1754805100618,2.47417717,4228.7,4228.6,0.22096775]
[1754805100825,1.818,4228.7,4228.6,1.16776775]
[1754805101189,3.70983436,4228.7,4228.6,1.16776775]
[1754805102254,3.70983436,4228.7,4228.6,0.69826775]
[1754805102432,0.710198,4228.8,4228.6,1.16776775]
[1754805102760,0.710198,4228.8,4228.7,0.69826775]
[1754805102957,4.41998763,4228.8,4228.7,0.22096775]
[1754805103257,4.3443146,4228.8,4228.7,0.22096775]
[1754805103467,5.3361146,4228.8,4228.7,0.22096775]
[1754805104024,5.34414024,4228.8,4228.7,0.22096775]
[1754805105956,5.46254024,4228.8,4228.7,0.22096775]
[1754805106290,6.17282524,4228.8,4228.7,0.22096775]
[1754805106765,5.73102524,4228.8,4228.7,0.22096775]
[1754805107168,1.94442564,4228.8,4228.7,1.14436775]
[1754805107686,1.9364,4228.8,4228.7,1.14436775]
[1754805110179,1.9364,4228.8,4228.7,0.22096775]
[1754805110377,1.9364,4228.8,4228.7,0.22098234]
[1754805110582,1.9364,4228.8,4228.7,0.67488234]
[1754805112901,1.9364,4228.8,4228.7,1.12718234]
[1754805118309,1.9364,4228.8,4228.7,0.67488234]
[1754805119811,2.31961072,4228.8,4228.7,0.22098234]
[1754805120805,2.31961072,4228.8,4228.7,0.67488234]
[1754805121475,2.31961072,4228.8,4228.7,0.22098234]
[1754805121694,4.65780035,4228.8,4228.7,0.22098234]
[1754805122609,2.31961072,4228.8,4228.7,0.22098234]
[1754805124129,4.76140035,4228.8,4228.7,0.22098234]
[1754805124281,5.20780035,4228.8,4228.7,0.22098234]
[1754805127600,5.66170035,4228.8,4228.7,0.22098234]
[1754805127910,5.66370035,4228.8,4228.7,0.22098234]
[1754805128483,5.67172559,4228.8,4228.7,0.22098234]
[1754805129082,5.22532559,4228.8,4228.7,0.22098234]
[1754805130494,5.67172559,4228.8,4228.7,0.22098234]
[1754805132711,2.44205808,4228.2,4228.1,0.001]
[1754805132906,4.37745808,4228.2,4228.1,0.22234761]
[1754805135683,4.37745808,4228.2,4228.1,0.22233968]
[1754805136098,5.0266383,4228.2,4228.1,0.22233968]
[1754805136306,5.5026017,4228.2,4228.1,0.22233968]
[1754805136507,5.0266383,4228.2,4228.1,0.22233968]
[1754805136707,5.03466453,4228.2,4228.1,0.22233968]
[1754805137185,5.53112793,4228.2,4228.1,0.22233968]
[1754805137497,5.50156453,4228.2,4228.1,0.22233968]
[1754805138224,6.21766453,4228.2,4228.1,0.22233968]
[1754805138420,8.03466453,4228.2,4228.1,0.22233968]
[1754805139616,8.03466453,4228.2,4228.1,1.16853968]
[1754805140414,8.03466453,4228.2,4228.1,0.71793968]
[1754805140614,4.38548431,4228.2,4228.1,1.16853968]
[1754805140986,4.38548431,4228.2,4228.1,0.71793968]
[1754805141186,4.38548431,4228.2,4228.1,0.22233968]
[1754805143199,4.85238431,4228.2,4228.1,0.22233968]
[1754805143413,9.76122312,4228.2,4228.1,0.22233968]
[1754805143613,6.2575837,4228.2,4228.1,0.22233968]
[1754805143912,4.26013244,4228.2,4228.1,0.71793968]
[1754805144112,4.26013244,4228.2,4228.1,1.16853968]
[1754805144313,4.25210621,4228.2,4228.1,1.16853968]
[1754805145313,4.25210621,4228.2,4228.1,0.22233968]
[1754805145721,4.71900621,4228.2,4228.1,0.22233968]
[1754805145918,5.40529751,4228.2,4228.1,0.22233968]
[1754805146441,5.41332463,4228.2,4228.1,0.22233968]
[1754805146808,3.12942463,4228.2,4228.1,0.22233968]
[1754805147008,4.25913333,4228.2,4228.1,0.71793968]
[1754805147402,4.25913333,4228.2,4228.1,0.22233968]
[1754805147602,4.28869673,4228.2,4228.1,0.22233968]
[1754805147843,4.25913333,4228.2,4228.1,0.22233968]
[1754805149207,4.72603333,4228.2,4228.1,0.22233968]
[1754805149403,5.49003743,4228.2,4228.1,0.22233968]
[1754805149652,5.46047403,4228.2,4228.1,0.22233968]
[1754805149808,4.99557403,4228.2,4228.1,0.71793968]
[1754805150007,2.44513333,4228.2,4228.1,1.16853968]
[1754805150238,4.26113333,4228.2,4228.1,1.16853968]
[1754805150647,4.26113333,4228.2,4228.1,0.22233968]
[1754805151148,4.72803333,4228.2,4228.1,0.22233968]
[1754805151353,8.23209222,4228.2,4228.1,0.22233968]
[1754805151656,10.08883486,4228.2,4228.1,0.03434804]
[1754805151825,2.44210283,4228.1,4227.6,0.001]
[1754805152020,2.56068185,4227.7,4227.6,0.001]
[1754805152223,4.37668185,4227.7,4227.6,0.001]
[1754805152746,4.37668185,4227.7,4227.6,0.9472]
[1754805154415,4.37668185,4227.7,4227.6,0.001]
[1754805154756,5.07461407,4227.7,4227.6,0.001]
[1754805156654,5.10418097,4227.7,4227.6,0.001]
[1754805156961,5.60873151,4227.7,4227.6,0.001]
[1754805157116,8.57916461,4227.7,4227.6,0.001]
[1754805157320,11.41816461,4227.7,4227.6,0.001]
[1754805157542,11.88506461,4227.7,4227.6,0.001]
[1754805157963,11.41816461,4227.7,4227.6,0.001]
[1754805158224,11.42619255,4227.7,4227.6,0.001]
[1754805159643,11.89309255,4227.7,4227.6,0.001]
[1754805159842,12.07015678,4227.7,4227.6,0.001]
[1754805160561,11.60325678,4227.7,4227.6,0.001]
[1754805162461,12.07015678,4227.7,4227.6,1e-08]
[1754805162667,1.89263191,4227.0,4225.6,0.04]
[1754805162955,1.8924609,4227.3,4225.9,0.4956]
[1754805162956,2.44304306,4226.0,4225.9,0.4956]
[1754805163156,4.25904306,4226.0,4225.9,0.4956]
[1754805163360,4.25904306,4226.0,4225.9,0.9462]
[1754805163771,4.25904306,4226.0,4225.9,1.16736385]
[1754805164124,4.96975106,4226.0,4225.9,1.16736385]
[1754805165095,0.710708,4226.0,4225.9,1.16736385]
[1754805165262,1.816,4226.0,4225.9,1.16736385]
[1754805165984,3.70904306,4226.0,4225.9,1.16736385]
[1754805166185,1.816,4226.0,4225.9,1.16736385]
[1754805168701,0.710633,4226.3,4225.9,1.16736385]
[1754805168909,1.816,4226.2,4226.0,9.36115392]
[1754805169070,0.710524,4227.0,4226.1,1.14016385]
[1754805169276,1.816,4226.9,4226.2,1.14016385]
[1754805169581,3.70865036,4226.9,4226.3,2.07627924]
[1754805169785,3.70865036,4226.9,4226.4,0.22116385]
[1754805169786,1.89273707,4226.7,4226.4,0.22116385]
[1754805170003,3.70864452,4226.9,4226.5,1.14016385]
[1754805170186,1.816,4226.9,4226.6,1.14016385]
[1754805170366,1.89278732,4226.6,4226.3,0.4889]
[1754805170560,1.816,4226.5,4226.4,1.13981457]
[1754805170897,1.816,4226.5,4226.4,0.22081457]
[1754805170898,4.25881911,4226.5,4226.4,0.22081457]
[1754805172170,7.71751911,4226.5,4226.4,0.22081457]
[1754805172387,7.72554781,4226.5,4226.4,0.22081457]
[1754805172693,2.44317746,4225.7,4225.6,0.04]
[1754805172881,4.38057746,4225.7,4225.6,0.2609046]
[1754805173392,4.38057746,4225.7,4225.6,0.26083654]
[1754805176794,4.38860962,4225.7,4225.6,0.26083654]
[1754805176973,6.11454198,4225.7,4225.6,0.26083654]
[1754805177172,6.57324198,4225.7,4225.6,0.26083654]
[1754805177367,1.89353594,4224.9,4224.8,0.919]
[1754805177563,2.44358076,4224.8,4224.7,0.001]
[1754805177995,2.44358076,4224.8,4224.7,0.4899]
[1754805178204,2.44358076,4224.8,4224.7,0.001]
[1754805178702,1.89355012,4224.9,4224.7,0.92]
[1754805178909,3.71258076,4224.8,4224.7,0.001]
[1754805179465,1.819,4224.8,4224.7,0.92]
[1754805179704,4.97345676,4224.8,4224.7,0.001]
[1754805179885,4.42345676,4224.8,4224.7,0.4899]
[1754805180110,2.529876,4224.8,4224.7,0.92]
[1754805181127,4.42345676,4224.8,4224.7,0.001]
[1754805181494,4.97345676,4224.8,4224.7,0.001]
[1754805182490,5.21295676,4224.8,4224.7,0.001]
[1754805182684,6.76119032,4224.8,4224.7,0.001]
[1754805183230,9.76119032,4224.8,4224.7,0.001]
[1754805184486,9.52169032,4224.8,4224.7,0.001]
[1754805184686,9.76119032,4224.8,4224.7,0.001]
[1754805184925,7.94219032,4224.8,4224.7,0.001]
[1754805185103,9.69632457,4224.8,4224.7,0.001]
[1754805185416,9.93582457,4224.8,4224.7,0.001]
[1754805185633,9.9438577,4224.8,4224.7,0.001]
[1754805185815,9.7043577,4224.8,4224.7,0.001]
[1754805185993,7.8843577,4224.8,4224.7,0.001]
[1754805186193,9.7043577,4224.8,4224.7,0.001]
[1754805187194,10.1630577,4224.8,4224.7,0.001]
[1754805187630,10.2814577,4224.8,4224.7,0.001]
[1754805188220,9.8227577,4224.8,4224.7,0.001]
[1754805188832,0.55,4223.7,4223.6,0.04]
[1754805188991,0.43355205,4224.0,4223.7,0.4889]
[1754805189193,3.0,4223.8,4223.6,0.04]
[1754805189394,1.89407391,4223.7,4223.6,0.04]
[1754805189720,1.822,4223.7,4223.6,0.04]
[1754805190212,2.60511584,4223.8,4223.6,0.04]
[1754805190213,0.711081,4223.8,4223.6,0.04]
[1754805190392,0.711081,4223.8,4223.6,0.959]
[1754805190393,1.822,4223.7,4223.6,0.959]
[1754805190596,3.71607391,4223.7,4223.6,0.959]
[1754805191099,1.822,4223.7,4223.6,0.959]
[1754805191317,0.711081,4223.8,4223.6,0.959]
[1754805191488,1.822,4223.7,4223.6,0.04]
[1754805192102,1.822,4223.7,4223.6,0.959]
[1754805192300,1.821,4223.7,4223.6,0.959]
[1754805192712,1.821,4223.7,4223.6,1.24431621]
[1754805192911,0.710943,4224.1,4223.7,1.89404032]
[1754805193102,1.821,4224.0,4223.8,0.919]
[1754805193303,1.821,4224.0,4223.9,0.919]
[1754805193524,1.821,4224.0,4223.6,0.041]
[1754805193724,1.89407391,4223.7,4223.6,0.041]
[1754805193925,3.71507391,4223.7,4223.6,0.4711]
[1754805194125,3.71507391,4223.7,4223.6,0.041]
[1754805196509,4.29466881,4223.7,4223.6,0.041]
[1754805196709,4.26507391,4223.7,4223.6,0.041]
[1754805196905,4.89919007,4223.7,4223.6,0.041]
[1754805197249,4.90722434,4223.7,4223.6,0.041]
[1754805197455,4.93681924,4223.7,4223.6,0.041]
[1754805198205,5.39601924,4223.7,4223.6,0.041]
[1754805198410,5.36642434,4223.7,4223.6,0.041]
[1754805198825,5.48482434,4223.7,4223.6,0.041]
[1754805199516,5.02662434,4223.7,4223.6,0.9497]
[1754805200047,3.84150818,4223.7,4223.6,0.9497]
[1754805201111,3.84150818,4223.7,4223.6,0.518]
[1754805201112,3.83347391,4223.7,4223.6,0.518]
[1754805201546,3.83347391,4223.7,4223.6,0.041]
[1754805201728,4.41306881,4223.7,4223.6,0.041]
[1754805202146,4.84267391,4223.7,4223.6,0.041]
[1754805202450,3.32545927,4223.7,4223.6,0.041]
[1754805202654,4.59745927,4223.7,4223.6,0.9497]
[1754805202859,3.83447391,4223.7,4223.6,0.9497]
[1754805203934,1.9404,4223.7,4223.6,0.9497]
[1754805204148,0.1184,4223.7,4223.6,0.9497]
[1754805204319,1.9404,4223.7,4223.6,0.9497]
[1754805204721,3.83447391,4223.7,4223.6,0.9497]
[1754805205257,4.5080246,4223.7,4223.6,0.041]
[1754805205443,5.0284297,4223.7,4223.6,0.041]
[1754805205839,2.6564297,4223.7,4223.6,0.9497]
[1754805206041,2.6564297,4223.7,4223.6,0.041]
[1754805206042,4.38447391,4223.7,4223.6,0.041]
[1754805206243,3.06650958,4223.7,4223.6,0.041]
[1754805206457,3.83547391,4223.7,4223.6,0.9497]
[1754805208133,4.38547391,4223.7,4223.6,0.041]
[1754805209144,4.38547391,4223.7,4223.6,0.9497]
[1754805209339,4.38547391,4223.7,4223.6,0.518]
[1754805209553,5.08533323,4223.7,4223.6,0.041]
[1754805209745,6.04915374,4223.7,4223.6,0.041]
[1754805209945,5.58995374,4223.7,4223.6,0.041]
[1754805210630,5.08633323,4223.7,4223.6,0.9497]
[1754805210834,4.39450923,4223.7,4223.6,0.9497]
[1754805211059,4.39450923,4223.7,4223.6,0.518]
[1754805211370,4.39450923,4223.7,4223.6,0.041]
[1754805212667,1.94943532,4223.7,4223.6,0.9497]
[1754805213345,0.12643532,4223.7,4223.6,0.9497]
[1754805213543,1.9414,4223.7,4223.6,0.9497]
[1754805213926,0.1184,4223.7,4223.6,1.23409453]
[1754805214128,1.9424,4223.7,4223.6,1.23409453]
[1754805214560,3.83647391,4223.7,4223.6,0.9497]
[1754805214923,3.83647391,4223.7,4223.6,0.518]
[1754805215128,3.83647391,4223.7,4223.6,0.041]
[1754805215528,0.55,4223.5,4222.0,0.4317]
[1754805215752,1.89474681,4222.2,4222.1,0.477]
[1754805215935,3.72574681,4222.2,4222.1,0.477]
[1754805216135,3.72574681,4222.2,4221.0,1.89524755]
[1754805216136,1.831,4222.2,4221.0,0.477]
[1754805216341,2.44497122,4221.7,4221.1,0.477]
[1754805216658,4.27597122,4221.7,4221.1,0.477]
[1754805216961,3.55,4221.6,4220.5,0.4317]
[1754805217257,1.89542019,4220.7,4220.5,0.4317]
[1754805217458,3.72942019,4220.7,4220.6,0.9487]
[1754805217673,1.834,4220.7,4220.6,0.9487]
[1754805218240,1.834,4220.7,4220.6,0.517]
[1754805218241,3.72942019,4220.7,4220.6,0.517]
[1754805218766,3.72942019,4220.7,4220.6,0.9487]
[1754805219080,1.834,4220.7,4220.6,0.9487]
[1754805219248,4.10235037,4220.7,4220.6,1e-08]
[1754805219571,2.20693018,4220.7,4220.6,1e-08]
[1754805219872,1.89537551,4220.8,4220.6,1.12944024]
[1754805220063,1.849,4220.7,4220.6,1e-08]
[1754805220239,1.849,4220.7,4220.6,0.22073665]
[1754805220445,1.849,4220.7,4220.6,2.11620174]
[1754805220643,1.849,4220.7,4220.6,3.02490174]
[1754805220879,1.849,4220.7,4220.6,3.51694543]
[1754805221790,1.89469171,4222.4,4221.4,1.89506341]
[1754805221956,1.85,4221.7,4221.5,0.22051475]
[1754805222272,1.85,4221.7,4221.6,1.12921475]
[1754805222773,1.85,4221.7,4221.6,3.02423085]
[1754805223682,0.711319,4222.0,4221.9,1.89488145]
[1754805223891,2.561319,4222.0,4221.9,3.0240962]
[1754805224080,1.85,4222.0,4221.9,3.0240962]
[1754805225565,1.9684,4222.0,4221.9,3.0240962]
[1754805225898,1.9684,4222.0,4221.9,3.56519658]
[1754805227571,1.85,4222.0,4221.9,3.56519658]
[1754805228163,0.711208,4222.7,4221.9,1.67031513]
[1754805228368,0.711208,4222.7,4222.2,1.89474681]
[1754805228671,0.711208,4222.7,4222.5,1.89461219]
[1754805228923,0.711208,4222.7,4222.6,3.03978207]
[1754805229201,2.559208,4222.7,4222.6,3.03978207]
[1754805229667,1.848,4222.7,4222.6,3.03978207]
[1754805230903,0.1184,4222.8,4222.7,1.89452246]
[1754805231084,1.9654,4222.8,4222.7,2.11503721]
[1754805231285,0.1184,4222.8,4222.7,0.22051475]
[1754805231489,1.9654,4222.8,4222.7,0.22051475]
[1754805232188,3.85987759,4222.8,4222.7,0.22051475]
[1754805232361,4.89886655,4222.8,4222.7,0.22051475]
[1754805232794,0.71108,4223.5,4222.7,0.22051475]
[1754805232982,0.1184,4222.8,4222.5,0.9247]
[1754805233176,1.89434618,4223.1,4222.6,1.14523604]
[1754805233177,1.847,4222.7,4222.6,1.14523604]
[1754805233694,1.9654,4222.7,4222.6,1.14523604]
[1754805233889,1.9654,4222.7,4222.6,0.71033604]
[1754805234970,1.9654,4222.7,4222.6,0.22053604]
[1754805236305,1.9654,4222.7,4222.6,2.60490336]
[1754805236509,1.9634,4222.7,4222.6,3.03980336]
[1754805236683,0.1184,4222.7,4222.6,3.03980336]
[1754805236881,1.9634,4222.7,4222.6,3.03980336]
[1754805237706,0.1184,4222.7,4222.6,3.03980336]
[1754805237907,1.9624,4222.7,4222.6,3.5332468]
[1754805238102,1.847,4222.8,4222.7,1.89452246]
[1754805238301,1.847,4222.8,4222.7,3.0397585]
[1754805238808,0.002,4222.8,4222.7,3.0397585]
[1754805240384,0.002,4222.8,4222.7,2.6048585]
[1754805240581,0.002,4222.8,4222.7,3.50154153]
[1754805241088,0.002,4222.8,4222.7,3.28100549]
[1754805241295,0.002,4222.8,4222.7,3.50150887]
[1754805242516,0.002,4222.8,4222.7,3.06660887]
[1754805242903,0.002,4222.8,4222.7,3.50150887]
[1754805244311,0.002,4222.8,4222.7,3.50148585]
[1754805245313,0.002,4222.8,4222.7,2.11500282]
[1754805246788,0.002,4222.8,4222.7,2.60480282]
[1754805249225,0.002,4222.8,4222.7,2.11500282]
[1754805249716,0.002,4222.8,4222.7,2.60480282]
[1754805250020,0.002,4222.8,4222.7,3.03970282]
[1754805253691,0.002,4222.8,4222.7,2.60480282]
[1754805255644,0.002,4222.8,4222.7,3.8449728]
[1754805259041,0.002,4222.8,4222.7,1.14518036]
[1754805259209,0.002,4222.8,4222.7,3.03970282]
[1754805260761,0.002,4222.8,4222.7,0.22048036]
[1754805261751,0.4761,4222.8,4222.7,0.22048036]
[1754805263630,1.836,4222.8,4222.7,0.22048036]
[1754805268736,1.834,4222.8,4222.7,0.22048036]
[1754805269562,1.833,4222.8,4222.7,3.06470282]
[1754805269758,1.833,4222.8,4222.7,1.17018036]
[1754805270374,0.002,4222.8,4222.7,3.06470282]
[1754805270943,0.002,4222.8,4222.7,1.17018036]
[1754805271347,0.002,4222.8,4222.7,0.22048036]
[1754805271547,0.002,4222.8,4222.7,0.70928036]
[1754805271743,0.002,4222.8,4222.7,3.06470282]
[1754805271943,0.002,4222.8,4222.7,3.3711731]
[1754805273161,0.002,4222.8,4222.7,11.61047952]
[1754805276066,0.002,4222.8,4222.7,11.6117318]
[1754805276946,0.002,4222.8,4222.7,14.6117318]
[1754805279235,0.002,4222.8,4222.7,5.42272538]
[1754805279435,0.002,4222.8,4222.7,6.37242538]
[1754805279982,0.002,4222.8,4222.7,5.42272538]
[1754805280274,0.002,4222.8,4222.7,6.37242538]
[1754805284043,0.002,4223.3,4222.7,6.37242538]
[1754805284044,1e-08,4223.3,4223.2,1.89429816]
[1754805284289,0.04,4223.9,4223.6,1.89411876]
[1754805284583,0.04,4223.9,4223.6,11.60379322]
[1754805284789,0.04,4223.9,4223.6,13.13285782]
[1754805284957,0.1584,4224.9,4224.0,1.89393939]
[1754805285156,1e-08,4224.1,4224.0,13.84396431]